fUST/lending_fUST_20240103
["ID","MTS","AMOUNT","RATE_DAILY","PERIOD"]
[309995965,1704283838742,-4216.1,0.00045595,5]
[309995968,1704283838760,-239.0,0.00045616,2]
[309995970,1704283838773,-150.0,0.00045665,60]
[309995972,1704283838785,-226.0,0.00045665,60]
[309995975,1704283838802,-154.84515485,0.00045666,4]
[309995977,1704283838814,-4504.31306103,0.00045674,120]
[309995979,1704283838827,-150.0,0.00045675,60]
[309995981,1704283838839,-226.0,0.00045675,60]
[309995984,1704283838851,-150.0,0.00045685,60]
[309995986,1704283838873,-226.0,0.00045685,60]
[309995987,1704283838886,-164.30969653,0.00045694,30]
[309995988,1704283838898,-45401.15776001,0.00045695,7]
[309995992,1704283839011,-1850.0,0.00045695,7]
[309995993,1704283839027,-2302.5,0.00045695,7]
[309995994,1704283839041,-8033.15079906,0.00045695,7]
[309995995,1704283839055,-1856.25047739,0.00045695,7]
[309995996,1704283839069,-27540.39506629,0.00045695,7]
[309996013,1704283839306,-4086.25,0.00045695,7]
[309996015,1704283839321,-10761.75,0.00045695,7]
[309996017,1704283839336,-1146.97841236,0.00045695,7]
[309996038,1704283839777,-1515.278456,0.00034521,2]
[309996039,1704283839789,-462.77,0.00034888,3]
[309996040,1704283839801,-500.0,0.00037998,2]
[309996041,1704283839812,-469.99123253,0.00037998,2]
[309996042,1704283839824,-575.62922998,0.00037998,2]
[309996043,1704283839837,-193.14837428,0.00043289,4]
[309996044,1704283839847,-500.0,0.00043289,7]
[309996045,1704283839859,-306.72192249,0.00043289,7]
[309996046,1704283839870,-1105.39620802,0.00045695,7]
[309996048,1704283839884,-9533.04116003,0.00045695,7]
[309996050,1704283839898,-3465.71832251,0.00045695,7]
[309996051,1704283839911,-902.73101929,0.00045695,7]
[309996052,1704283839935,-1999.12867997,0.00045695,7]
[309996083,1704283840325,-45773.89848463,0.00045695,7]
[309996088,1704283840339,-5070.96382537,0.00045695,7]
[309996092,1704283840354,-1276.87891946,0.00045695,7]
[309996097,1704283840373,-286147.06949985,0.00045695,7]
[309996100,1704283840387,-527.12954456,0.00045695,7]
[309996112,1704283840458,-2925.07945132,0.00045695,7]
[309996146,1704283840734,-22686.589512,0.00045695,7]
[309996175,1704283841037,-393283.93744031,0.00045695,7]
[309996273,1704283842356,-807.74076911,0.00045695,7]
[309996274,1704283842374,-55150.94770808,0.00045695,7]
[309996275,1704283842388,-2104.98953475,0.00045695,7]
[309996276,1704283842403,-685.25000075,0.00045695,7]
[309996277,1704283842417,-1594.33566221,0.00045695,7]
[309996278,1704283842436,-4553.52185787,0.00045695,7]
[309996279,1704283842450,-8287.84010146,0.00045695,7]
[309996280,1704283842472,-60900.0,0.00045695,7]
[309996281,1704283842486,-465.17200001,0.00045695,7]
[309996282,1704283842505,-42946.83054983,0.00045695,7]
[309996283,1704283842519,-305.74939411,0.00045695,7]
[309996284,1704283842533,-17956.13647712,0.00045695,7]
[309996285,1704283842547,-2942.66,0.00045695,7]
[309996298,1704283842769,-312.93007248,0.00045695,7]
[309996306,1704283842790,-1206.45647173,0.00045695,7]
[309996313,1704283842805,-206664.18751382,0.00045695,7]
[309996714,1704283844403,-3388.5,0.00045695,7]
[309996721,1704283844418,-7293.0000014,0.00045695,7]
[309996726,1704283844438,-38039.7055093,0.00045695,7]
[309996734,1704283844454,-4333.04757717,0.00045695,7]
[309996739,1704283844469,-333.344,0.00045695,7]
[309996744,1704283844483,-1203.33001,0.00045695,7]
[309996749,1704283844502,-4429.68924569,0.00045695,7]
[309996758,1704283844522,-7699.9800003,0.00045695,7]
[309996763,1704283844535,-8979.2670822,0.00045695,7]
[309996767,1704283844552,-7583.00432612,0.00045695,7]
[309996776,1704283844583,-23711.74954445,0.00045695,7]
[309996784,1704283844604,-282563.28303664,0.00045695,7]
[309996788,1704283844619,-3086.79836677,0.00045695,7]
[309996792,1704283844634,-47031.31868316,0.00045695,7]
[309996795,1704283844649,-10034.81592722,0.00045695,7]
[309996800,1704283844672,-2394.71985088,0.00045695,7]
[309996803,1704283844703,-3842.4000002,0.00045695,7]
[309996806,1704283844724,-1300.0,0.00045695,7]
[309997253,1704283849269,-10757.53496658,0.00030875,14]
[309997257,1704283849284,-6606.60709011,0.00030875,14]
[309997270,1704283849434,-8385.91454697,0.00030875,14]
[309997273,1704283849466,-4977.53712834,0.00030875,14]
[309997275,1704283849478,-5975.66580939,0.00030875,4]
[309997277,1704283849490,-1737.71362764,0.00030875,4]
[309997279,1704283849507,-1000.0,0.00030875,2]
[309997281,1704283849518,-813.87698097,0.00038497,2]
[309997284,1704283849533,-252.98013591,0.00041124,4]
[309997286,1704283849547,-376.05367075,0.00043289,4]
[309997288,1704283849558,-3174.25023907,0.00045693,4]
[309997290,1704283849569,-246.06986126,0.00045693,4]
[309997292,1704283849581,-955.76287203,0.00045694,4]
[309997294,1704283849593,-11584.13060593,0.00045694,4]
[309997296,1704283849605,-5711.61620623,0.00045694,4]
[309997298,1704283849616,-173.0,0.00045695,2]
[309997299,1704283849636,-189521.34286248,0.00045695,7]
[309997324,1704283849917,-147850.1316727,0.00045695,7]
[309997326,1704283849928,-151.0,0.00045695,3]
[309997328,1704283849949,-230.599087,0.00045695,7]
[309997330,1704283849960,-230.599087,0.00045695,7]
[309997332,1704283849972,-151.0,0.00045695,2]
[309997334,1704283849983,-394.005376,0.00045695,7]
[309997336,1704283849996,-394.005376,0.00045695,7]
[309997338,1704283850007,-250.04269304,0.00045696,4]
[309997340,1704283850018,-161.96718927,0.00045701,10]
[309997342,1704283850030,-500.0,0.00045753,27]
[309997344,1704283850042,-2000.0,0.00045753,21]
[309997346,1704283850056,-2000.0,0.00045753,21]
[309997348,1704283850067,-2000.0,0.00045753,21]
[309997350,1704283850078,-1365.1,0.00045753,21]
[309997352,1704283850090,-153.0,0.00045796,2]
[309997354,1704283850101,-153.0,0.00045796,2]
[309997356,1704283850113,-153.0,0.00045796,2]
[309997358,1704283850125,-1000.0,0.00045873,7]
[309997360,1704283850136,-603.33633004,0.00045877,7]
[309997362,1704283850147,-1401.12086684,0.0004589,45]
[309997436,1704283851017,-0.11773315,0.0004589,45]
[310005162,1704284209603,-166.16362772,0.00028783,2]
[310005163,1704284209629,-328.2954028,0.00028783,2]
[310005164,1704284209651,-253.17313502,0.00028783,2]
[310005165,1704284209673,-2631.68489228,0.00028784,2]
[310005166,1704284209696,-586.04748878,0.00028784,2]
[310005167,1704284209719,-4431.99090233,0.00028784,2]
[310005168,1704284209743,-3663.64455107,0.00028785,2]
[310005169,1704284276663,-154.84515485,0.00028775,2]
[310005170,1704284276686,-198.55633635,0.00028775,2]
[310005171,1704284276708,-154.84515485,0.00028775,2]
[310005172,1704284276729,-154.84515485,0.00028775,2]
[310005173,1704284276752,-154.84515485,0.00028775,2]
[310005174,1704284276776,-707.91854197,0.00028776,2]
[310005175,1704284276799,-2027.03693589,0.00028776,2]
[310005176,1704284276820,-612.96786415,0.00028776,2]
[310005177,1704284276841,-553.25941224,0.00028777,2]
[310005178,1704284276863,-223.69711736,0.00028777,2]
[310005179,1704284276885,-1678.44623893,0.00028778,2]
[310005180,1704284276906,-154.84515485,0.00028778,2]
[310005181,1704284276927,-154.84515485,0.00028778,2]
[310005182,1704284276950,-7932.20562033,0.00028778,2]
[310005183,1704284276971,-154.84515485,0.00028778,2]
[310005184,1704284276993,-309.65937778,0.00028779,2]
[310005185,1704284277016,-154.84515485,0.00028779,2]
[310005186,1704284277044,-242.17543569,0.00028779,2]
[310005187,1704284277066,-524.98429826,0.00028779,2]
[310005188,1704284277092,-590.516407,0.00028779,2]
[310005189,1704284277115,-15185.30495486,0.00028779,2]
[310005190,1704284277139,-2704.45519417,0.0002878,2]
[310005191,1704284277161,-154.84515485,0.0002878,2]
[310005192,1704284277184,-4781.11668773,0.0002878,2]
[310005193,1704284277205,-249.91407237,0.0002878,2]
[310005194,1704284277227,-321.94449774,0.0002878,2]
[310005195,1704284277248,-264.48060354,0.0002878,2]
[310005196,1704284277269,-154.84515485,0.00028781,2]
[310005197,1704284277293,-641.96499442,0.00028781,2]
[310005198,1704284277315,-154.84515485,0.00028781,2]
[310005199,1704284277336,-154.84515485,0.00028782,2]
[310005200,1704284277358,-154.84515485,0.00028782,2]
[310005201,1704284277380,-154.84515485,0.00028782,2]
[310005202,1704284277401,-147.56324132,0.00028785,2]
[310005203,1704284328906,9423.987408,0.00027784,120]
[310005204,1704284349690,-2997.40556678,0.0002877,2]
[310005205,1704284349715,-593.75888513,0.00028771,2]
[310005206,1704284349736,-19632.2086524,0.00028771,2]
[310005207,1704284349758,-164.65816911,0.00028772,2]
[310005208,1704284349782,-4863.84931342,0.00028772,2]
[310005209,1704284349804,-154.84515485,0.00028774,2]
[310005210,1704284349826,-24900.0,0.0002878,2]
[310005211,1704284349848,-488.79220761,0.00028785,2]
[310005212,1704284349870,-2966.11,0.00028801,3]
[310005213,1704284349891,-9356.3720507,0.00028811,2]
[310005215,1704284386253,155.32794773,0.00027,3]
[310005216,1704284425366,-399.38718748,0.00027724,2]
[310005217,1704284425391,-300.83380095,0.00027724,2]
[310005218,1704284425420,-166.32510416,0.00027725,2]
[310005219,1704284425442,-154.79876161,0.00027725,2]
[310005220,1704284425465,-261.34893601,0.00027726,2]
[310005221,1704284425488,-1584.80241164,0.00027726,2]
[310005222,1704284425511,-1271.50379815,0.00027726,2]
[310005277,1704284541796,166.666666,0.00026256,2]
[310005278,1704284542143,166.666666,0.00026972,2]
[310005279,1704284550614,5707.74909032,0.00025928,2]
[310005280,1704284579597,12618.11613859,0.00025928,7]
[310005281,1704284589051,227.4243312,0.0002721,2]
[310005294,1704284750097,-178.24808117,0.00027436,2]
[310005295,1704284750116,-154.81422293,0.00027437,2]
[310005296,1704284750136,-154.81422293,0.00027437,2]
[310005297,1704284750157,-170.1709713,0.00027438,2]
[310005298,1704284750181,-559.68125324,0.00027438,2]
[310005299,1704284750201,-293.96606539,0.00027438,2]
[310005300,1704284750222,-212.61910187,0.00027439,2]
[310005301,1704284750242,-4431.99090233,0.00027439,2]
[310005302,1704284750261,-859.47841956,0.00027444,2]
[310005303,1704284750280,-679.37734518,0.00027444,2]
[310005304,1704284750301,-524.98429826,0.00027444,2]
[310005305,1704284750320,-173.10210203,0.00027444,2]
[310005310,1704284780709,24900.0,0.00026434,2]
[310005316,1704284815671,16102.8981508,0.00026429,2]
[310005319,1704284830103,-3271.71,0.00027415,3]
[310005320,1704284830124,-679.37734518,0.00027419,2]
[310005321,1704284830145,-343.43501932,0.00027419,2]
[310005322,1704284830166,-154.81422293,0.00027419,4]
[310005323,1704284830187,-612.96786415,0.00027419,2]
[310005324,1704284830207,-154.81422293,0.00027419,2]
[310005325,1704284830227,-26.77353891,0.0002742,2]
[310005326,1704284838098,-2726.42,0.00027412,3]
[310005327,1704284838119,-154.81422293,0.00027413,2]
[310005328,1704284838139,-590.516407,0.00027413,2]
[310005329,1704284838159,-154.81422293,0.00027414,2]
[310005330,1704284838179,-553.25941224,0.00027414,2]
[310005331,1704284838198,-4863.84931342,0.00027414,2]
[310005332,1704284838218,-7932.20562033,0.00027414,2]
[310005333,1704284838238,-293.96606539,0.00027414,2]
[310005334,1704284838260,-900.11478533,0.00027414,2]
[310005335,1704284838281,-154.81422293,0.00027414,2]
[310005336,1704284838300,-852.21256595,0.00027414,2]
[310005337,1704284838320,-154.81422293,0.00027414,2]
[310005338,1704284838341,-707.91854197,0.00027414,2]
[310005339,1704284838360,-154.81422293,0.00027414,2]
[310005340,1704284838379,-974.55748819,0.00027419,2]
[310005341,1704284838502,-135.70032689,0.0002742,2]
[310005342,1704284838530,-559.68125324,0.0002742,2]
[310005343,1704284838551,-524.98429826,0.0002742,2]
[310005344,1704284838570,-20831.85137104,0.0002742,2]
[310005345,1704284838589,-873.72208253,0.0002742,2]
[310005346,1704284838609,-225.99959212,0.0002742,2]
[310005348,1704284839749,2032.6292065,0.00026421,2]
[310005352,1704284843123,-1573.51769649,0.00027411,2]
[310005353,1704284843146,-249.91407237,0.00027413,2]
[310005354,1704284843166,-154.81422293,0.00027413,2]
[310005355,1704284843187,-264.48060354,0.00027413,2]
[310005356,1704284843207,-154.81422293,0.00027413,2]
[310005357,1704284843227,-276.28977151,0.00027419,2]
[310005358,1704284843251,-679.37734518,0.00027419,2]
[310005359,1704284843272,-803.00249429,0.0002742,2]
[310005360,1704284843293,-2508.36986414,0.0002742,2]
[310005361,1704284843314,-1245.57985204,0.0002742,2]
[310005369,1704284912485,1139.389086,0.00026407,2]
[310005396,1704284938056,563.8221709,0.00026616,2]
[310005414,1704284949099,-154.79876161,0.00027394,2]
[310005415,1704284949122,-4297.51,0.00027395,3]
[310005416,1704284949142,-154.79876161,0.00027396,2]
[310005417,1704284949164,-791.56030418,0.00027396,2]
[310005419,1704284950312,154.79876161,0.00027146,2]
[310005421,1704284952334,-254.91008809,0.00027393,2]
[310005422,1704284952355,-7061.62816846,0.00027396,2]
[310005423,1704284952376,-4803.68452735,0.00027396,2]
[310005424,1704284952396,-13673.02936715,0.00027396,2]
[310005425,1704284952418,-2810.77756441,0.00027397,2]
[310005426,1704284952439,-4781.11668773,0.00027397,2]
[310005427,1704284952461,-944.51958651,0.00027397,2]
[310005428,1704284952482,-178.24808117,0.00027397,2]
[310005429,1704284952503,-20802.94450653,0.00027397,2]
[310005430,1704284952524,-154.79876161,0.00027403,2]
[310005431,1704284952546,-156.60017086,0.00027403,2]
[310005432,1704284952567,-154.79876161,0.00027403,2]
[310005434,1704284952589,-2027.03693589,0.00027403,2]
[310005436,1704284952608,-154.79876161,0.00027403,2]
[310005437,1704284952628,-2804.5410618,0.00027403,2]
[310005438,1704284952649,-154.79876161,0.00027404,2]
[310005439,1704284952669,-871.16529394,0.00027404,2]
[310005440,1704284952689,-154.79876161,0.00027404,4]
[310005441,1704284952709,-154.79876161,0.00027404,2]
[310005442,1704284952731,-4863.84931342,0.00027404,2]
[310005443,1704284952750,-321.94449774,0.00027404,2]
[310005444,1704284952770,-413.50609139,0.00027404,2]
[310005446,1704284952879,-15185.30495486,0.00027404,2]
[310005447,1704284952903,-460.19779524,0.00027405,20]
[310005448,1704284952925,-154.79876161,0.00027405,2]
[310005449,1704284952951,-154.79876161,0.00027405,2]
[310005450,1704284952972,-559.68125324,0.00027405,2]
[310005451,1704284952996,-1238.07238046,0.00027405,2]
[310005452,1704284953017,-520.2185,0.00027405,2]
[310005453,1704284953038,-36770.35479684,0.00027405,2]
[310005454,1704284953061,-19632.2086524,0.00027405,2]
[310005455,1704284953087,-2997.40556678,0.00027407,2]
[310005456,1704284953109,-468.93451344,0.00027416,2]
[310005457,1704284953131,-94500.72334939,0.0002742,7]
[310005458,1704284953170,-34903.63403062,0.0002742,7]
[310005460,1704284954579,316.92120077,0.00026616,2]
[310005463,1704284955087,-2139.67825439,0.0002742,7]
[310005465,1704284956057,1000.0,0.00026616,2]
[310005467,1704284958107,-23265.85525823,0.0002742,7]
[310005470,1704284960094,154.79876161,0.00026616,2]
[310005474,1704284962549,154.79876161,0.00026616,2]
[310005477,1704284962817,18839.45820726,0.00026616,2]
[310005479,1704284964114,545.99331309,0.00026616,2]
[310005480,1704284964309,154.79876161,0.0002635,2]
[310005482,1704284967218,297.6005845,0.00026616,2]
[310005483,1704284967745,1464.41511106,0.00026999,2]
[310005488,1704284970389,173.18109,0.00026146,2]
[310005491,1704284973425,247.78510582,0.00026616,2]
[310005493,1704284974495,618.56145052,0.00026616,2]
[310005494,1704284976101,154.95346137,0.00026616,2]
[310005496,1704284977361,3207.16995725,0.00026616,2]
[310005497,1704284978246,154.84515485,0.00026616,2]
[310005500,1704284978816,1865.04156051,0.00026616,2]
[310005502,1704284979992,165.2029838,0.00026616,2]
[310005504,1704284982536,256.57685411,0.00026616,2]
[310005505,1704284984115,545.99331309,0.00026616,2]
[310005510,1704284988312,154.9224769,0.0002635,2]
[310005512,1704284989215,368.96838433,0.00026616,2]
[310005515,1704284990479,618.56145052,0.00026616,2]
[310005517,1704284991095,202.06554559,0.00026616,2]
[310005519,1704284991354,3219.36967294,0.00026616,2]
[310005520,1704284991753,1464.41511106,0.00022341,2]
[310005523,1704284996222,154.87190811,0.00026616,2]
[310005524,1704284996258,220.53140938,0.00026616,2]
[310005529,1704285000148,266556.55663105,0.00026616,7]
[310005531,1704285002114,545.99331309,0.00026616,2]
[310005542,1704285008474,738.29275599,0.00026616,2]
[310005545,1704285011750,1464.41511106,0.00022341,2]
[310005546,1704285014301,155.23390359,0.00025,2]
[310005549,1704285020108,545.99331309,0.00022341,2]
[310005600,1704285028589,166.666666,0.00025969,2]
[310005601,1704285028997,166.666666,0.00026677,2]
[310005602,1704285029140,1350.04520168,0.00022341,5]
[310005749,1704285032685,-166.666666,0.00027385,2]
[310005752,1704285032695,-264.74772312,0.00027406,2]
[310005754,1704285032704,-2698.71304933,0.00027406,5]
[310005757,1704285032714,-343.43501932,0.00027406,2]
[310005760,1704285032724,-154.81422293,0.00027406,4]
[310005763,1704285032733,-3447.46779446,0.00027407,2]
[310005766,1704285032743,-308.36912425,0.00027408,2]
[310005769,1704285032752,-437.3551265,0.00027408,2]
[310005772,1704285032762,-155.31713268,0.00027408,2]
[310005775,1704285032771,-207.36016796,0.00027409,2]
[310005778,1704285032781,-12690.57668503,0.00027409,2]
[310005780,1704285032790,-178.24808117,0.00027416,2]
[310005783,1704285032800,-4781.11668773,0.00027416,2]
[310005786,1704285032810,-2027.03693589,0.00027417,2]
[310005789,1704285032820,-16920.74062983,0.00027418,2]
[310005790,1704285033116,-3882.2038767,0.00027418,2]
[310005792,1704285033126,-2997.40556678,0.00027418,2]
[310005794,1704285033135,-154.87608058,0.00027419,2]
[310005796,1704285033147,-3384.1862163,0.0002742,2]
[310005798,1704285033157,-566.19194991,0.0002742,2]
[310005800,1704285033167,-2752.8438033,0.00027449,2]
[310005802,1704285033177,-169.21031936,0.00027452,3]
[310005803,1704285033186,-172.09567292,0.00027555,2]
[310005805,1704285033195,-166.86352893,0.00027651,2]
[310005807,1704285033204,-151.31843755,0.00027671,2]
[310005809,1704285033213,-155.78943376,0.00027726,2]
[310005811,1704285033223,-170.07739419,0.00027727,2]
[310005813,1704285033233,-154.86061926,0.00027727,2]
[310005815,1704285033242,-858.5036781,0.00027728,2]
[310005816,1704285033252,-309.64048301,0.00027728,2]
[310005818,1704285033262,-166.666666,0.00028093,2]
[310005820,1704285033271,-154.81422293,0.00028102,2]
[310005822,1704285033280,-154.81422293,0.00028103,2]
[310005824,1704285033290,-559.68125324,0.00028103,2]
[310005825,1704285033299,-460.19779524,0.00028104,20]
[310005827,1704285033309,-174.69757,0.00028105,2]
[310005829,1704285033318,-4863.84931342,0.00028402,2]
[310005831,1704285033328,-835.7233255,0.00028403,2]
[310005833,1704285033337,-166.666666,0.00028801,2]
[310005835,1704285033346,-166.666666,0.00029509,2]
[310005837,1704285033355,-1320.81396188,0.00029769,2]
[310005839,1704285033364,-2673.28082936,0.0002977,3]
[310005842,1704285033376,-485.82917064,0.0002977,3]
[310005844,1704285033386,-322.38366746,0.00029789,2]
[310005846,1704285033398,-12642.3759619,0.0002979,7]
[310005848,1704285033410,-366.63381765,0.0002979,7]
[310005851,1704285033429,-17364.29022045,0.0002979,7]
[310005853,1704285033439,-630.78616628,0.00029823,2]
[310005855,1704285033447,-245.0,0.0003,2]
[310005857,1704285033456,-157.08568762,0.0003,4]
[310005859,1704285033466,-154.85246875,0.0003,60]
[310005861,1704285033475,-685.36830863,0.0003,4]
[310005863,1704285033485,-239.76924444,0.0003,5]
[310005865,1704285033494,-2286.5545799,0.00030137,2]
[310005867,1704285033503,-200.0,0.00030149,15]
[310005869,1704285033512,-2631.63248071,0.00033,4]
[310005871,1704285033522,-280.0,0.00033164,15]
[310005873,1704285033531,-4657.66153763,0.00034,2]
[310005875,1704285033540,-1037.32022099,0.0003425,4]
[310005877,1704285033549,-750.08313753,0.00034251,4]
[310005879,1704285033558,-21440.63585179,0.00034252,4]
[310005881,1704285033567,-268.42168901,0.00034497,4]
[310005883,1704285033575,-1744.315352,0.00034521,2]
[310005885,1704285033585,-666.4896426,0.0003495,5]
[310005887,1704285033594,-154.79876161,0.00035,4]
[310005889,1704285033603,-4177.42015254,0.00035,4]
[310005891,1704285033612,-590.27084275,0.00035,2]
[310005893,1704285033621,-2747.29244323,0.0003545,2]
[310005981,1704285034503,-791.44424087,0.0003545,2]
[310005983,1704285034513,-150.0,0.00035452,2]
[310005985,1704285034522,-512.852173,0.00035616,120]
[310005987,1704285034532,-413.28652308,0.00035638,2]
[310005989,1704285034541,-575.52602556,0.00035798,2]
[310006075,1704285035759,1464.41511106,0.00022341,2]
[310006336,1704285038719,-154.81422293,0.00028092,2]
[310006337,1704285038728,-154.81422293,0.00028092,2]
[310006338,1704285038738,-944.51958651,0.00028102,2]
[310006339,1704285038747,-871.16529394,0.00028103,2]
[310006340,1704285038757,-4803.68452735,0.00028103,2]
[310006341,1704285038766,-235.45206444,0.00028303,2]
[310006342,1704285038776,-468.93451344,0.00029788,2]
[310006343,1704285038786,-1000.0,0.00034,7]
[310006344,1704285038795,-188.0,0.00034252,2]
[310006345,1704285038805,-1168.78932644,0.00035798,2]
[310006346,1704285038814,-160.76041854,0.00035998,2]
[310006347,1704285038824,-246.54786854,0.00035998,4]
[310006348,1704285038833,-16119.36288245,0.00035998,4]
[310006349,1704285038843,-3151.09146455,0.00035998,4]
[310006350,1704285038853,-409.50813087,0.00035998,4]
[310006351,1704285038862,-259.09642175,0.00035998,4]
[310006352,1704285038872,-313.11786183,0.00035998,4]
[310006353,1704285038881,-244.31659469,0.00035998,4]
[310006354,1704285038891,-6962.32791511,0.00035998,4]
[310006355,1704285038901,-8112.61857385,0.00035999,4]
[310006356,1704285038911,-18856.02428609,0.00036,4]
[310006357,1704285038928,-1276.87891946,0.00036,4]
[310006359,1704285038940,-8369.89742471,0.00036,4]
[310006361,1704285038949,-229.99225833,0.00036,4]
[310006363,1704285038958,-391.0,0.0003648,15]
[310006365,1704285038968,-1037.60264758,0.00037003,2]
[310006366,1704285038979,-1744.315352,0.00037075,2]
[310006367,1704285038990,-184.77970273,0.00037896,2]
[310006368,1704285038999,-184.76548466,0.00037896,2]
[310006370,1704285039008,-193.27845609,0.00037896,2]
[310006372,1704285039019,-163.75219479,0.00037998,4]
[310006374,1704285039029,-1574.74418664,0.00037998,4]
[310006376,1704285039039,-805.58249726,0.00037999,4]
[310006378,1704285039048,-489.18244236,0.00037999,2]
[310006380,1704285039058,-23439.58534068,0.00038,7]
[310006381,1704285039068,-731.79987618,0.00038,120]
[310006382,1704285039077,-69045.85785803,0.00038,30]
[310006383,1704285039087,-154.81422293,0.00038,7]
[310006384,1704285039097,-1744.315352,0.00038352,2]
[310006386,1704285039107,-500.0,0.00038356,2]
[310006387,1704285039116,-208.72372448,0.00038439,2]
[310006388,1704285039126,-15753.79917305,0.00038439,2]
[310006389,1704285039135,-2953.83734495,0.00038439,2]
[310006390,1704285039145,-2776.02553568,0.00038517,2]
[310006391,1704285039154,-3610.49971384,0.00038686,2]
[310006392,1704285039164,-180.52498569,0.00038686,2]
[310006393,1704285039172,-14441.98587455,0.00038686,2]
[310006394,1704285039182,-1065.74568402,0.00038686,2]
[310006395,1704285039191,-250.0,0.0003874,2]
[310006396,1704285039200,-3326.08447944,0.000388,45]
[310006397,1704285039209,-152.15,0.00039175,7]
[310006399,1704285039218,-150.0,0.00039185,7]
[310006401,1704285039227,-150.0,0.00039195,7]
[310006403,1704285039237,-257.61,0.00039195,60]
[310006405,1704285039246,-174.71433,0.00039205,2]
[310006407,1704285039254,-150.0,0.0003927,60]
[310006409,1704285039264,-176.0,0.0003927,60]
[310006411,1704285039274,-150.0,0.0003928,60]
[310006413,1704285039283,-150.0,0.0003928,60]
[310006415,1704285039292,-150.0,0.0003929,60]
[310006416,1704285039302,-150.0,0.0003929,60]
[310006418,1704285039311,-1139.389086,0.0003961,2]
[310006420,1704285039321,-1744.315352,0.0003963,2]
[310006422,1704285039330,-29220.55644246,0.0004,4]
[310006424,1704285039339,-1573.71175048,0.0004,10]
[310006426,1704285039348,-1278.30335464,0.0004,4]
[310006428,1704285039357,-371.04881992,0.0004,4]
[310006430,1704285039367,-200.0,0.00040128,30]
[310006432,1704285039377,-348.0,0.00040128,30]
[310006434,1704285039386,-236.6224097,0.000405,3]
[310006436,1704285039397,-5749.28570823,0.000405,2]
[310006438,1704285039406,-150.69465081,0.00040873,2]
[310006440,1704285039416,-293.67825077,0.00041115,4]
[310006442,1704285039425,-1394.25607327,0.00041115,4]
[310006444,1704285039434,-165.0792676,0.00041115,4]
[310006446,1704285039444,-555.95789165,0.00041115,4]
[310006448,1704285039454,-4863.64351053,0.00041115,2]
[310006450,1704285039463,-589.45266775,0.00041115,4]
[310006452,1704285039473,-540.13948865,0.00041115,4]
[310006454,1704285039483,-3422.46976409,0.00041115,2]
[310006456,1704285039494,-822.94813818,0.00041116,4]
[310006458,1704285039504,-17238.52918955,0.00041118,4]
[310006460,1704285039513,-8697.77052632,0.00041398,4]
[310006462,1704285039523,-512.852173,0.00041553,120]
[310006464,1704285039532,-153.362397,0.00042857,30]
[310006466,1704285039541,-232.75851685,0.00042955,4]
[310006468,1704285039551,-447.1902748,0.00042996,4]
[310006470,1704285039560,-2534.31495366,0.00042998,4]
[310006471,1704285039573,-296.83683225,0.00042998,4]
[310006474,1704285039582,-529.71712566,0.00042998,4]
[310006475,1704285039593,-155.3888687,0.00042999,4]
[310006477,1704285039603,-1498.50266768,0.00042999,4]
[310006479,1704285039612,-674.16951139,0.00042999,4]
[310006481,1704285039622,-873.27865021,0.00042999,4]
[310006483,1704285039632,-1418.04874812,0.00042999,4]
[310006486,1704285039642,-1208.75368787,0.00042999,4]
[310006488,1704285039654,-398.99600895,0.00042999,4]
[310006490,1704285039664,-226.53521332,0.00042999,4]
[310006492,1704285039674,-4808.08580524,0.00043,7]
[310006493,1704285039684,-2479.78133963,0.0004351,2]
[310006495,1704285039694,-930.30627035,0.00043595,2]
[310006497,1704285039704,-153.362397,0.00043928,30]
[310006499,1704285039715,-225.76405521,0.00044,4]
[310006502,1704285039724,-200.0,0.00044141,30]
[310006504,1704285039735,-200.0,0.00044141,30]
[310006506,1704285039744,-368.0,0.00044141,30]
[310006507,1704285039755,-155.0,0.0004435,2]
[310006509,1704285039765,-239.0,0.00044524,2]
[310006511,1704285039776,-5000.0,0.00044791,2]
[310006522,1704285039870,-151.0,0.00044801,21]
[310006524,1704285039880,-3471.12171036,0.00044884,4]
[310006526,1704285039892,-295.95,0.00044999,7]
[310006528,1704285039907,-295.95,0.00044999,7]
[310006530,1704285039918,-295.95,0.00044999,7]
[310006532,1704285039929,-295.95,0.00044999,7]